Cogmind - Beta 16 @@@ ROGUE MODE // 2025.12.22 @ 15:03:10 Player: saltine Result: Destroyed by P-80 Master with Gamma Rifle Performance ------------- Evolutions (9) 4500 Regions Visited (24) 4800 Robots Destroyed (96) 480 Value Destroyed (3760) 3760 Prototype IDs (239) 4780 Alien Tech Used (0) 0 Bonus (8472) 8472 TOTAL SCORE: 26792 Bonus ------- High Alert Combat Kills 230 Follower Combat Kills 1931 Delivered SUBCON Basin 2000 Registered with UFD 300 Met Optimus in HQ 500 Met Data Miner 300 Used Data Conduit 3000 Met R17 at Cetus 500 Friendly Fire -289 Cogmind --------- Core Integrity 0/1600 Matter 139/300 Energy 99/100 System Corruption 3% Temperature Cool (0) Movement Core (50) Location -1/Access Parts ------- > --- POWER (2) -------- (None) > --- PROPULSION (7) --- (None) > --- UTILITY (14) ----- (None) > --- WEAPON (2) ------- (None) > --- INVENTORY (5) ---- A0-MCA's Component Scanner Linear Accelerator Peak State ------------ > --- POWER ------------ Backup Power III Light Neutrino Core > --- PROPULSION ------- Improved Heavy Treads Heavy Shield Leg Improved Cesium-ion Thruster Improved Cesium-ion Thruster > --- UTILITY ---------- Advanced Sensor Array Experimental Signal Interpreter Hacking Suite Improved Hacking Suite Improved Hacking Suite Improved Hacking Suite Improved Hacking Suite Improved System Shield Improved System Shield > --- WEAPON ----------- Enhanced Quantum Rifle Enhanced Quantum Rifle > --- INVENTORY -------- Light Angular Momentum Engine A0-MCA's Component Scanner Advanced Plasma Cannon Linear Accelerator Advanced Datajack [Rating: 119] Favorites ----------- Power Light Ion Engine Engine Light Ion Engine Power Core Light Neutrino Core Reactor Quantum Reactor Propulsion Light Treads Treads Light Treads Leg Flexi-carbon Leg Wheel Armored Wheel Flight Unit Improved Cesium-ion Thruster Utility High-capacity Storage Unit Device Seismic Detector Storage High-capacity Storage Unit Processor Advanced Signal Interpreter Hackware Hacking Suite Protection Medium Armor Plating Weapon Light Cannon Energy Gun Enhanced Quantum Rifle Energy Cannon Subdweller Beam Cannon Ballistic Gun Assault Rifle Ballistic Cannon Light Cannon Launcher Compact Tesla Bomb Launcher Special Weapon Mining Laser Impact Weapon Power Maul Slashing Weapon Power Sword Special Melee Weapon Advanced Datajack Build | -11 -10 -10 -9 -9 -6 -6 -6 -6 -6 -6 -5 -5 -5 -5 -5 -4 -4 -4 -4 -3 -3 -2 -2 -1 ------- Run | Yrd Mat Sub Rec Scr Fac Was Fac Low Low Dat Pro Fac Ext Cet Arc Fac Was Fac Arm Res Tes Res Qua Acc Slots Evolved 18 | . . . . . 8 . . . . . . 2 . . . 2 . . . 2 . 2 . 2 Power 1 | . . . . . 1 . . . . . . . . . . . . . . . . . . . Propulsion 5 | . . . . . 2 . . . . . . 1 . . . 1 . . . . . 1 . . Utility 12 | . . . . . 5 . . . . . . 1 . . . 1 . . . 2 . 1 . 2 Weapon . | . . . . . . . . . . . . . . . . . . . . . . . . . Parts Attached 137 | 7 5 14 2 2 19 1 8 1 . . 2 1 11 11 18 3 5 2 11 8 4 . . 2 Power 18 | 1 1 2 . 1 1 . 3 . . . 1 . 2 1 1 . . . 2 1 1 . . . Engine 7 | 1 1 2 . 1 . . . . . . . . . . . . . . 1 1 . . . . Core 8 | . . . . . 1 . 3 . . . 1 . 2 . . . . . 1 . . . . . Reactor 3 | . . . . . . . . . . . . . . 1 1 . . . . . 1 . . . Propulsion 31 | 2 . 3 . 1 5 1 . . . . . . 1 2 3 . 2 . 3 5 2 . . 1 Treads 15 | 2 . 3 . 1 . . . . . . . . 1 . 3 . 1 . 3 1 . . . . Leg 3 | . . . . . . . . . . . . . . 2 . . 1 . . . . . . . Wheel 2 | . . . . . 2 . . . . . . . . . . . . . . . . . . . Hover . | . . . . . . . . . . . . . . . . . . . . . . . . . Flight 11 | . . . . . 3 1 . . . . . . . . . . . . . 4 2 . . 1 Utility 55 | 2 3 2 2 . 9 . 4 1 . . . 1 7 5 10 3 . 1 5 . . . . . Device 17 | 1 . 1 . . 2 . 2 . . . . 1 2 2 3 2 . . 1 . . . . . Storage 5 | 1 2 . . . . . . . . . . . . 1 . . . . 1 . . . . . Processor 6 | . . . . . 4 . . . . . . . 1 . . 1 . . . . . . . . Hackware 17 | . . . . . 2 . 1 1 . . . . 3 . 7 . . . 3 . . . . . Protection 10 | . 1 1 2 . 1 . 1 . . . . . 1 2 . . . 1 . . . . . . Artifact . | . . . . . . . . . . . . . . . . . . . . . . . . . Weapon 33 | 2 1 7 . . 4 . 1 . . . 1 . 1 3 4 . 3 1 1 2 1 . . 1 Energy Gun 4 | 1 . 1 . . . . . . . . . . . . . . 2 . . . . . . . Energy Cannon 4 | . . 1 . . 1 . . . . . . . . 1 . . . 1 . . . . . . Ballistic Gun 6 | 1 . . . . . . . . . . . . . 2 2 . . . . . 1 . . . Ballistic Cannon 8 | . 1 4 . . . . 1 . . . . . . . . . 1 . . 1 . . . . Launcher 4 | . . . . . . . . . . . 1 . . . . . . . 1 1 . . . 1 Special Weapon 3 | . . 1 . . 1 . . . . . . . 1 . . . . . . . . . . . Impact Weapon 1 | . . . . . 1 . . . . . . . . . . . . . . . . . . . Slashing Weapon 1 | . . . . . 1 . . . . . . . . . . . . . . . . . . . Piercing Weapon . | . . . . . . . . . . . . . . . . . . . . . . . . . Special Melee Weapon 2 | . . . . . . . . . . . . . . . 2 . . . . . . . . . Unidentified Prototypes 3 | . . . . . 1 1 . . . . . . . . . . . . . . 1 . . . Parts Lost 57 | . . 5 . . . . 1 . . 1 2 1 4 4 4 . . 1 13 10 6 . . 5 Power 9 | . . 1 . . . . 1 . . . 1 . 1 . . . . . 3 1 . . . 1 Propulsion 22 | . . 3 . . . . . . . . . . . 2 2 . . 1 4 4 5 . . 1 Utility 18 | . . 1 . . . . . . . 1 1 1 3 2 . . . . 3 4 1 . . 1 Weapon 8 | . . . . . . . . . . . . . . . 2 . . . 3 1 . . . 2 Highest Loss Streak 6 | . . 2 . . . . 1 . . 1 1 1 3 3 4 . . 1 3 5 6 . . 5 To Critical Strikes . | . . . . . . . . . . . . . . . . . . . . . . . . . Average Backups 11 | 2 14 17 6 13 8 5 4 4 4 5 4 4 4 7 16 4 4 5 7 7 5 5 5 3 Power 1 | . 1 1 . . . 1 . 1 1 1 . . 1 . 1 1 1 1 . . . 1 1 . Propulsion 1 | 1 2 3 1 2 . . . . . . . . . . . . . . . . . . . . Utility 3 | . 3 3 3 6 2 1 1 1 1 1 1 1 1 2 7 1 1 1 2 1 1 1 1 1 Weapon 4 | . 6 8 1 2 2 3 2 2 2 3 2 2 2 3 6 . 1 2 4 6 4 3 3 2 Tool/Special . | . . . . . . . . . . . . . . . . . . . . . . . . . Unused Backups 37 | . 2 2 . 4 11 . 1 . . . . . 1 1 7 1 . . . 5 1 . . 1 Power 7 | . . 1 . 1 1 . . . . . . . 1 1 1 1 . . . . . . . . Propulsion 3 | . 1 . . 1 1 . . . . . . . . . . . . . . . . . . . Utility 9 | . . . . 1 3 . 1 . . . . . . . 2 . . . . 1 . . . 1 Weapon 16 | . 1 1 . 1 4 . . . . . . . . . 4 . . . . 4 1 . . . Tool/Special 2 | . . . . . 2 . . . . . . . . . . . . . . . . . . . Average Slot Usage (%) 90 | . 100 99 100 100 77 84 87 86 86 85 76 63 68 92 87 67 84 88 69 37 32 4 4 3 Engine 8 | . 14 13 14 14 4 . . . . . . . . . . . 4 5 3 . . . . . Core 1 | . . . . . 1 6 6 6 6 6 6 5 5 5 5 5 5 5 4 . . . . . Treads 18 | . 28 28 28 28 3 . . . . . . . . 5 6 . 4 5 10 5 . . . . Flight 5 | . . . . . 14 24 26 26 26 26 26 21 23 11 9 10 10 10 1 4 13 . . . Device 7 | . 6 11 . . 9 6 11 13 13 12 6 6 12 21 18 4 5 5 4 2 . . . . Storage 8 | . 14 14 14 14 1 . . . . . . . . 1 4 . . . 2 2 . . . . Processor 2 | . . . . . 15 20 13 13 13 13 13 11 5 2 . 3 5 5 5 4 4 4 4 2 Hackware 5 | . . . . . 5 13 13 13 13 13 13 10 8 7 6 37 36 35 27 13 4 . . . Protection 6 | . 7 2 14 14 5 6 6 6 6 6 2 . 4 9 10 . . . . . . . . . Energy Gun 1 | . 9 3 . . . . . . . . . . . . . . 7 5 3 . . . . . Energy Cannon 1 | . . 5 . . . . . . . . . . . . . . . 4 2 1 . . . . Ballistic Gun 3 | . 14 6 . . . . . . . . . . . 9 5 . . . . . 2 . . . Ballistic Cannon 10 | . 4 8 28 28 2 . . . . . . . . . . . 1 . 2 . 2 . . . Special Weapon 1 | . . 4 . . . . . . . . . . . . . . . . . . . . . . Peak Build Rating 119 | 7 8 26 27 23 67 68 78 78 77 73 68 67 74 109 109 78 119 119 111 84 87 19 12 28 Average Rating 38 | 5 7 10 20 13 52 66 70 72 73 72 63 59 60 94 95 72 105 116 96 63 71 12 12 9 On Entrance 52 | . 7 8 26 10 23 61 68 78 73 73 68 62 63 69 109 65 73 119 96 63 65 12 12 12 Avg Prop Armor Cover (%) 4 | . . . . . 12 3 2 2 3 3 3 5 . 9 2 . 7 11 1 22 7 . . . Naked Turns 48 | . . . . . . . . . . . . . . . . . . . . . . . . 48 Heaviest Build 141 | 13 53 60 56 62 64 14 28 26 18 18 17 12 26 141 141 10 29 40 61 38 27 . . . Greatest Support 215 | 40 40 40 40 48 22 18 18 18 18 18 18 23 23 35 84 12 75 75 215 167 42 3 3 6 Greatest Overweight (x) 7 | . 1 1 1 1 2 . 1 1 . . . . 1 4 7 . . . . . . . . . Average Overweight (x) . | . . 1 1 1 . . . . . . . . . 2 2 . . . . . . . . . Largest Inventory Capacity 25 | 8 20 20 20 20 20 5 5 5 5 5 5 5 5 25 25 5 5 5 15 15 5 5 5 5 Average Capacity 15 | 7 17 20 20 20 9 5 5 5 5 5 5 5 5 11 24 5 5 5 10 10 5 5 5 5 Most Carried 25 | 5 16 20 20 20 19 5 5 5 5 5 5 5 5 14 25 5 5 5 14 11 5 5 5 5 Average Carried 12 | 2 14 18 15 13 8 5 4 4 4 5 4 4 4 7 16 4 4 5 7 7 4 4 5 3 Final Capacity 25 | 8 20 20 20 20 5 5 5 5 5 5 5 5 5 25 5 5 5 5 15 5 5 5 5 5 Final Carried 20 | 5 16 20 10 20 5 5 5 5 5 5 4 5 5 14 5 5 5 5 12 5 5 5 5 2 Class Distribution -------------------- 59% | Mutant 12% | Scavenger-Mutant 9% | Hacker-Scout 8% | Hacker-Mutant 3% | Wizard-Mutant Dominant Class ---------------- Mutant | -10/Materials Mutant | -10/Subcaves Mutant | -9/Recycling Mutant | -9/Scraptown Hacker-Scout | -6/Factory Hacker-Scout | -6/Waste Hacker-Scout | -6/Factory Hacker-Scout | -6/Lower Caves Hacker-Scout | -6/Lower Caves Hacker-Scout | -6/Data Miner Hacker-Sprinter | -5/Proximity Caves Hacker-Sprinter | -5/Factory Hacker-Sprinter | -5/Extension Scavenger-Mutant | -5/Cetus Scavenger-Mutant | -5/Archives Scavenger-Mutant | -4/Factory Wizard-Mutant | -4/Waste Wizard-Mutant | -4/Factory Hacker-Mutant | -4/Armory Hacker-Mutant | -3/Research Mutant | -3/Testing Mutant | -2/Research Mutant | -2/Quarantine Mutant | -1/Access Resources | -11 -10 -10 -9 -9 -6 -6 -6 -6 -6 -6 -5 -5 -5 -5 -5 -4 -4 -4 -4 -3 -3 -2 -2 -1 ----------- Run | Yrd Mat Sub Rec Scr Fac Was Fac Low Low Dat Pro Fac Ext Cet Arc Fac Was Fac Arm Res Tes Res Qua Acc Matter Collected 3668 | 214 478 526 99 10 225 . 163 81 . . 52 50 281 274 573 . 111 40 259 40 . . . 192 Remotely . | . . . . . . . . . . . . . . . . . . . . . . . . . Salvage Created 4190 | 31 454 445 44 . 225 . 206 . 12 . 54 80 204 394 701 . . 261 621 12 406 . . 40 Parts 221 | 6 32 27 3 . 9 . 3 . . . 8 6 18 16 36 . . 9 24 3 20 . . 1 Haulers Intercepted 6 | . 2 . . . 2 . 2 . . . . . . . . . . . . . . . . . Recyclers Shooed 2 | 1 1 . . . . . . . . . . . . . . . . . . . . . . . Parts Field Recycled . | . . . . . . . . . . . . . . . . . . . . . . . . . Retrieved Matter . | . . . . . . . . . . . . . . . . . . . . . . . . . Parts Self-Destructed 17 | . . 14 . . . . . . . . 3 . . . . . . . . . . . . . Prevented . | . . . . . . . . . . . . . . . . . . . . . . . . . Parts Restored . | . . . . . . . . . . . . . . . . . . . . . . . . . Kills | -11 -10 -10 -9 -9 -6 -6 -6 -6 -6 -6 -5 -5 -5 -5 -5 -4 -4 -4 -4 -3 -3 -2 -2 -1 ------- Run | Yrd Mat Sub Rec Scr Fac Was Fac Low Low Dat Pro Fac Ext Cet Arc Fac Was Fac Arm Res Tes Res Qua Acc Combat Hostiles Destroyed 67 | . 13 14 1 . . . . . . . 6 1 3 5 4 . . 2 13 . 4 . . 1 Melee 3 | . . . . . . . . . . . 2 . . . . . . . 1 . . . . . Guns 29 | . 7 7 . . . . . . . . . . . 4 4 . . . 3 . 4 . . . Cannons 27 | . 6 7 1 . . . . . . . . 1 3 1 . . . 2 6 . . . . . AOE 5 | . . . . . . . . . . . 4 . . . . . . . . . . . . 1 Classes Destroyed 16 | 1 4 4 . . 1 . . . . . 1 . 1 . . . . 1 1 1 1 . . . Worker 2 | . 1 . . . . . . . . . . . . . . . . . . . 1 . . . Builder 1 | . . . . . . . . . . . . . . . . . . . . 1 . . . . Tunneler 2 | 2 . . . . . . . . . . . . . . . . . . . . . . . . Hauler 6 | . 2 . . . 2 . 2 . . . . . . . . . . . . . . . . . Recycler 1 | . . . . . . . . . . . . . . . . . . 1 . . . . . . Operator 13 | . . . . . 1 . . . . . . . 1 . 9 . . . 1 . 1 . . . Drone 2 | . . . . . . . . . . . 2 . . . . . . . . . . . . . Turret 2 | . . 2 . . . . . . . . . . . . . . . . . . . . . . Swarmer 24 | . 5 8 . . . . . . . . 4 . . . . . . . 5 . 1 . . 1 Saboteur 1 | . . . . . . . . . . . . . . . . . . . 1 . . . . . Grunt 9 | . 8 . . . . . . . . . . . . . . . . . 1 . . . . . Researcher 1 | . . . . . . . . . . . . . . . . . . . . . 1 . . . Sentry 16 | . . 1 1 . . . . . . . . 1 2 . 4 . . . 4 . 3 . . . Hunter 5 | . . . . . . . . . . . . . 1 . . . . 2 2 . . . . . Cetus Guard 5 | . . . . . . . . . . . . . . 5 . . . . . . . . . . Artisan 3 | . . 3 . . . . . . . . . . . . . . . . . . . . . . Subdweller 5 | . . 5 . . . . . . . . . . . . . . . . . . . . . . Decomposer 1 | . . . . . . . . . 1 . . . . . . . . . . . . . . . Thug 1 | . . . . . . . . . . . . . . 1 . . . . . . . . . . Best Kill Streak 5 | 1 4 4 1 . 1 . 1 . . . 4 1 1 4 2 . . 3 4 1 5 . . 1 Combat Bots Only 4 | . 4 3 1 . . . . . . . 4 1 1 4 2 . . 1 4 . 4 . . 1 Max Kills in Single Turn 3 | 1 1 1 1 . 1 . 1 . 1 . 3 1 1 1 1 . . 1 1 1 2 . . 1 Gunslinging . | . . . . . . . . . . . . . . . . . . . . . . . . . Exploded 3 | . . . . . . . . . . . 3 . . . . . . . . . . . . 1 Melee 1 | . . . . . . . . . . . 1 . . . . . . . 1 . . . . . Uniques/NPCs Destroyed . | . . . . . . . . . . . . . . . . . . . . . . . . . Combat | -11 -10 -10 -9 -9 -6 -6 -6 -6 -6 -6 -5 -5 -5 -5 -5 -4 -4 -4 -4 -3 -3 -2 -2 -1 -------- Run | Yrd Mat Sub Rec Scr Fac Was Fac Low Low Dat Pro Fac Ext Cet Arc Fac Was Fac Arm Res Tes Res Qua Acc Hostile Shots Fired 1075 | . 52 130 . . 5 . 4 . 4 8 40 6 15 63 49 . . 58 241 193 43 17 . 147 Missed 389 | . 15 45 . . 2 . 1 . 3 2 18 1 4 18 15 . . 19 72 92 20 8 . 54 Hits 686 | . 37 85 . . 3 . 3 . 1 6 22 5 11 45 34 . . 39 169 101 23 9 . 93 Melee 6 | . . . . . . . . . . . . . . . . . . . 6 . . . . . Projectile 680 | . 37 85 . . 3 . 3 . 1 6 22 5 11 45 34 . . 39 163 101 23 9 . 93 Critical Strikes 14 | . . 2 . . . . . . . . 1 . . 6 . . . . 2 . 1 1 . 1 Damage Taken 13254 | . 386 758 . . 52 . 206 . 18 265 344 108 374 1210 909 . 23 826 2843 2050 426 321 . 2135 Core 4175 | . 84 112 . . . . 84 . . 131 96 68 . 55 54 . . 42 560 739 210 317 . 1623 Absorbed by Shields . | . . . . . . . . . . . . . . . . . . . . . . . . . Reduced by Siege Mode 6 | . . . . . . . . . . . . . . . . . . . 6 . . . . . Regen/Repaired (Parts) 430 | . . . . . . . . . . . . 62 . . . 23 343 2 . . . . . . Core Remaining (%) 59 | 100 . . . 21 . . . . . . 63 . . . 82 . . . 47 . 27 . 78 . Volleys Fired 365 | 5 45 73 1 . 9 . 2 1 1 . 3 2 27 28 59 3 . 18 58 8 14 1 . 7 Largest 2 | 2 2 2 2 . 1 . 1 1 1 . 1 1 1 2 2 1 . 2 2 1 1 1 . 1 Hottest 208 | 70 70 140 60 . 90 . 90 90 90 . 39 90 90 98 70 98 . 208 175 110 54 54 . 54 Shots Fired 531 | 10 90 125 2 . 9 . 3 1 1 . 3 2 27 41 85 3 . 24 75 8 14 1 . 7 Gun 288 | 10 67 64 . . . . . . . . . . . 28 85 . . . 17 . 13 . . 4 Cannon 222 | . 23 49 2 . 9 . 3 1 1 . . 2 27 13 . 3 . 24 55 7 1 1 . 1 Launcher 9 | . . . . . . . . . . . 3 . . . . . . . 3 1 . . . 2 Special 12 | . . 12 . . . . . . . . . . . . . . . . . . . . . . Kinetic 311 | 5 68 53 2 . . . 1 . . . . 1 20 28 85 . . . 26 2 14 1 . 5 Thermal 211 | 5 22 72 . . 9 . 2 1 1 . . 1 7 13 . 3 . 24 46 5 . . . . Explosive 3 | . . . . . . . . . . . 3 . . . . . . . . . . . . . Electromagnetic 6 | . . . . . . . . . . . . . . . . . . . 3 1 . . . 2 Robot Hit Streak 23 | 4 11 13 6 . . . . . . . 7 1 14 23 18 . . 5 9 3 14 . . 3 Robot Miss Streak 5 | 3 5 5 . . . . . . . . 1 . 1 2 2 . . 3 3 2 2 . . 5 Penetration Max 1 | . . . . . . . . . . . . . . . 1 . . . . . 1 . . 1 Secondary Targets 2 | . . 1 . . . . . . . . . . . 1 . . . . . . . . . . Max Gunslinging Chain 1 | . . 1 . . . . . . . . . . . 1 . . . . . . . . . . Shots Hit Robots 347 | 7 60 70 2 . 7 . 7 . 1 1 3 1 17 37 75 . . 6 35 1 13 . . 4 Core Hits 152 | 3 23 24 1 . 2 . 2 . 1 . 4 1 4 17 24 . . 4 17 3 13 . . 9 Critical Kills 19 | . . . . . . . . . . . . 1 3 3 5 . . . . . 7 . . . Critical Parts Destroyed 22 | . . . . . . . . . . . . . 5 1 5 . . . . . 7 . . 4 Critical Strikes 55 | . 3 . 1 . 1 . 1 . . . . 1 9 5 12 . . . 2 . 16 . . 4 Burn 3 | . 3 . . . . . . . . . . . . . . . . . . . . . . . Destroy 47 | . . . . . . . . . . . . 1 9 5 12 . . . . . 16 . . 4 Blast 3 | . . . 1 . . . . . . . . . . . . . . . 2 . . . . . Sever 2 | . . . . . 1 . 1 . . . . . . . . . . . . . . . . . Melee Attacks 122 | . . . . . 31 . 46 11 9 5 2 6 5 . 7 . . . . . . . . . Impact 4 | . . . . . 4 . . . . . . . . . . . . . . . . . . . Slashing 111 | . . . . . 27 . 46 11 9 5 2 6 5 . . . . . . . . . . . Piercing . | . . . . . . . . . . . . . . . . . . . . . . . . . Sneak Attacks 15 | . . . . . 4 . 2 . 1 1 . . . . 7 . . . . . . . . . Combat Hostiles . | . . . . . . . . . . . . . . . . . . . . . . . . . Follow-up Attacks . | . . . . . . . . . . . . . . . . . . . . . . . . . Damage Inflicted 9995 | 86 935 1285 83 . 566 . 487 . 69 91 448 19 205 1200 2073 . . 253 1602 79 166 8 . 340 Guns 4680 | 86 561 698 . . . . . . . . . . . 725 2073 . . . 303 . 166 . . 68 Cannons 2917 | . 292 587 39 . . . . . . . . 19 137 475 . . . 253 1069 46 . . . . Explosions 866 | . . . . . . . . . . . 351 . . . . . . . 228 30 . . . 257 Melee 1378 | . . . . . 566 . 487 . 69 91 97 . 68 . . . . . . . . . . . Ramming 154 | . 82 . 44 . . . . . . . . . . . . . . . 2 3 . 8 . 15 Kinetic 4930 | 38 672 379 39 . . . . . . . . 19 137 725 2073 . . . 614 . 166 . . 68 Thermal 2667 | 48 181 906 . . . . . . . . . . . 475 . . . 253 758 46 . . . . Explosive 351 | . . . . . . . . . . . 351 . . . . . . . . . . . . . Electromagnetic 515 | . . . . . . . . . . . . . . . . . . . 228 30 . . . 257 Impact 95 | . . . . . 95 . . . . . . . . . . . . . . . . . . . Slashing 1283 | . . . . . 471 . 487 . 69 91 97 . 68 . . . . . . . . . . . Piercing . | . . . . . . . . . . . . . . . . . . . . . . . . . Highest Corruption 13 | . . . . . . 7 7 1 . . . . 13 8 8 . . . 1 . . . . 3 Average Corruption 6 | . . . . . . 7 6 1 . . . . 9 8 7 . . . 1 . . . . 3 Corruption Purged 20 | . . . . . . . 6 1 . . . . 5 . 8 . . . . . . . . . Corruption Blocked . | . . . . . . . . . . . . . . . . . . . . . . . . . Effects 91 | . . . . . . 2 20 . . . . . 12 23 31 . . . 2 . . . . 1 Message Errors 25 | . . . . . . . 4 . . . . . 4 10 6 . . . . . . . . 1 Matter Fused 16 | . . . . . . . 5 . . . . . 2 3 6 . . . . . . . . . Heat Flow Errors 9 | . . . . . . 1 3 . . . . . 4 . . . . . 1 . . . . . Energy Discharges 8 | . . . . . . 1 2 . . . . . . 1 4 . . . . . . . . . Parts Rejected 2 | . . . . . . . 1 . . . . . . 1 . . . . . . . . . . Parts Fused 1 | . . . . . . . 1 . . . . . . . . . . . . . . . . . Data Loss (minor) 11 | . . . . . . . 1 . . . . . 2 3 4 . . . 1 . . . . . Data Loss (major) 2 | . . . . . . . 1 . . . . . . . 1 . . . . . . . . . Misfires 8 | . . . . . . . 1 . . . . . . 2 5 . . . . . . . . . Alerts 2 | . . . . . . . 1 . . . . . . . 1 . . . . . . . . . Weapon Failures 7 | . . . . . . . . . . . . . . 3 4 . . . . . . . . . Overload Shots . | . . . . . . . . . . . . . . . . . . . . . . . . . Overflow Damage 241 | . . 38 . . 85 . 37 . . . 69 . . . . . . . 8 . . . . 4 Projectiles 38 | . . 38 . . . . . . . . . . . . . . . . . . . . . . Explosions 38 | . . . . . . . . . . . 26 . . . . . . . 8 . . . . 4 Melee 165 | . . . . . 85 . 37 . . . 43 . . . . . . . . . . . . . Knockbacks 16 | . 6 4 . . . . . . . . . . 2 . . . . . 3 . . 1 . . Impact 1 | . . . . . . . . . . . . . . . . . . . . . . 1 . . Kinetic 14 | . 5 4 . . . . . . . . . . 2 . . . . . 3 . . . . . Secondary 1 | . 1 . . . . . . . . . . . . . . . . . . . . . . . Self-Inflicted Damage 87 | . . . . . . . . . . . 22 . . . . . . . 24 . . 4 . 37 Shots 4 | . . . . . . . . . . . 1 . . . . . . . 2 . . . . 1 Rammed 29 | . 13 . 6 . . . . . . . . . . . . . . . 2 4 . 1 . 3 Targets Rammed 30 | . 14 . 6 . . . . . . . . . . . . . . . 2 4 . 1 . 3 Kicked . | . . . . . . . . . . . . . . . . . . . . . . . . . Crushed 1 | . 1 . . . . . . . . . . . . . . . . . . . . . . . Highest Temperature 366 | 18 81 95 9 . 116 . 169 48 48 . . 38 251 331 . 36 . 340 366 28 . . . . Average Temperature 77 | 9 21 29 6 . 43 . 66 27 27 . . 14 92 206 . 20 . 114 115 15 . . . . Received Heat Transfer 1038 | . 147 99 . . 18 . 21 . 9 . . 9 18 99 108 . 9 153 303 9 . 36 . . Effects 9 | . . . . . . . . . . . . . 3 1 . . . 2 3 . . . . . Shutdowns 1 | . . . . . . . . . . . . . . . . . . . 1 . . . . . Energy Bleed 4 | . . . . . . . . . . . . . 1 1 . . . 1 1 . . . . . Interference 4 | . . . . . . . . . . . . . 2 . . . . 1 1 . . . . . Siege Activations 1 | . . . . . . . . . . . . . . . . . . . 1 . . . . . Total Turns 3 | . . . . . . . . . . . . . . . . . . . 3 . . . . . Longest Duration 3 | . . . . . . . . . . . . . . . . . . . 3 . . . . . Martial Activations . | . . . . . . . . . . . . . . . . . . . . . . . . . Shielding Activations . | . . . . . . . . . . . . . . . . . . . . . . . . . Robots Disrupted . | . . . . . . . . . . . . . . . . . . . . . . . . . Combat Hostiles . | . . . . . . . . . . . . . . . . . . . . . . . . . Robots Corrupted 3 | . . . . . . . . . . . . . . . . . . . 3 . . . . . Combat Hostiles 3 | . . . . . . . . . . . . . . . . . . . 3 . . . . . Parts Fried 6 | . . . . . . . . . . . . . . . . . . . 6 . . . . . Impact Corruptions . | . . . . . . . . . . . . . . . . . . . . . . . . . Robots Melted 1 | . 1 . . . . . . . . . . . . . . . . . . . . . . . Combat Hostiles . | . . . . . . . . . . . . . . . . . . . . . . . . . Parts Melted . | . . . . . . . . . . . . . . . . . . . . . . . . . Heat Transferred 3224 | 148 740 1253 . . . . . . . . . . . 650 . . . 100 333 . . . . . Parts Sabotaged 8 | . . . . . . . . . . . . . . . . . . . 8 . . . . . Parts Stolen . | . . . . . . . . . . . . . . . . . . . . . . . . . Parts Stripped . | . . . . . . . . . . . . . . . . . . . . . . . . . Power Chain Reactions . | . . . . . . . . . . . . . . . . . . . . . . . . . Alert | -11 -10 -10 -9 -9 -6 -6 -6 -6 -6 -6 -5 -5 -5 -5 -5 -4 -4 -4 -4 -3 -3 -2 -2 -1 ------- Run | Yrd Mat Sub Rec Scr Fac Was Fac Low Low Dat Pro Fac Ext Cet Arc Fac Was Fac Arm Res Tes Res Qua Acc Maximum Alert Level 3 | . 1 . . . . . . . . . . . . . . . . 2 3 2 2 1 . . Low Security (%) 83 | 100 98 . 100 . 100 100 100 . . . . 100 100 100 100 100 100 47 29 . . . 100 100 Level 1 6 | . 1 . . . . . . . . . . . . . . . . 41 31 . 29 100 . . Level 2 6 | . . . . . . . . . . . . . . . . . . 10 13 100 70 . . . Level 3 3 | . . . . . . . . . . . . . . . . . . . 25 . . . . . Level 4 . | . . . . . . . . . . . . . . . . . . . . . . . . . Level 5 . | . . . . . . . . . . . . . . . . . . . . . . . . . High Security . | . . . . . . . . . . . . . . . . . . . . . . . . . Max Security . | . . . . . . . . . . . . . . . . . . . . . . . . . Peak Influence 1047 | 5 207 . 124 . 51 2 56 . . . . 175 100 70 47 15 54 418 1047 663 482 302 159 190 Initial 504 | . . . 84 . . 2 . . . . . 132 75 22 . . . . 186 504 372 256 159 88 Average 108 | . 58 . 13 . 11 . 11 . . . . 136 27 19 4 3 8 194 458 472 428 285 155 103 Influence Increases 5953 | 10 478 305 119 . 223 . 235 . . . 280 93 280 193 170 19 66 710 1867 449 185 49 . 222 Destroy 0b10 Robot/C 2180 | . 260 220 20 . . . . . . . 80 20 120 160 80 . . 260 760 80 100 . . 20 Destroy 0b10 Robot/NC 120 | 10 15 . . . 15 . 10 . . . 10 . 5 5 10 . . 15 5 10 10 . . . Destroy Leader 350 | . 64 10 . . 2 . 4 . . . 10 10 20 . . . . 60 150 10 . . . 10 Allied During Kill 531 | . . . . . . . . . . . . . 13 14 1 . . 217 280 6 . . . . Successful Hack 298 | . 32 . 9 . 43 . 76 . . . . 6 41 . . . . 21 30 24 . 16 . . Select Force Hacks 150 | . 60 . 90 . . . . . . . . . . . . . . . . . . . . . Disable Machine 450 | . . . . . 45 . . . . . . 15 45 . 45 15 . 45 150 60 15 . . 15 Destroy Structure 884 | . 2 . . . 28 . 40 . . . . 12 6 14 34 4 66 92 492 34 . 3 . 57 Partial Spotted 150 | . . . . . 30 . 30 . . . . 30 15 . . . . . . 15 . 30 . . Lose Combat Pursuer 840 | . 45 75 . . 60 . 75 . . . 180 . 15 . . . . . . 210 60 . . 120 Influence Decreases 5773 | 10 295 313 294 . 217 6 211 24 . . 70 148 394 234 170 19 66 330 1286 747 391 221 136 191 Entered New Map 1701 | . . 89 91 . . 4 . 10 . . . 78 80 19 . . . . 194 457 291 201 126 61 Time Decay 2814 | 10 295 184 203 . 217 2 195 14 . . 60 60 223 164 130 19 66 110 522 190 40 20 10 80 Lost Part 477 | . . 40 . . . . 3 . . . 10 10 13 11 40 . . 10 130 100 60 . . 50 Lost Ally 468 | . . . . . . . . . . . . . 78 40 . . . 210 140 . . . . . Purge Threat 313 | . . . . . . . 13 . . . . . . . . . . . 300 . . . . . Squads Dispatched 41 | . 3 . . . 13 . 6 . . . . 1 . . . 4 . . 9 3 . 1 1 . Investigation 22 | . 2 . . . 8 . 3 . . . . 1 . . . 3 . . 3 2 . . . . Extermination 9 | . . . . . 4 . 2 . . . . . . . . . . . 3 . . . . . Reinforcement 10 | . 1 . . . 1 . 1 . . . . . . . . 1 . . 3 1 . 1 1 . Assault . | . . . . . . . . . . . . . . . . . . . . . . . . . Garrison . | . . . . . . . . . . . . . . . . . . . . . . . . . Intercept . | . . . . . . . . . . . . . . . . . . . . . . . . . Searches Triggered . | . . . . . . . . . . . . . . . . . . . . . . . . . Construction Impeded . | . . . . . . . . . . . . . . . . . . . . . . . . . Haulers Reinforced 1 | . . . . . 1 . . . . . . . . . . . . . . . . . . . Active Scanning Responses . | . . . . . . . . . . . . . . . . . . . . . . . . . Cargo Convoy Interrupts . | . . . . . . . . . . . . . . . . . . . . . . . . . Stealth | -11 -10 -10 -9 -9 -6 -6 -6 -6 -6 -6 -5 -5 -5 -5 -5 -4 -4 -4 -4 -3 -3 -2 -2 -1 --------- Run | Yrd Mat Sub Rec Scr Fac Was Fac Low Low Dat Pro Fac Ext Cet Arc Fac Was Fac Arm Res Tes Res Qua Acc Distress Signals 19 | . 2 . . . 1 . 1 . . . . . 2 2 1 . . . 4 2 1 . 1 2 Communications Jammed . | . . . . . . . . . . . . . . . . . . . . . . . . . Distress Signals . | . . . . . . . . . . . . . . . . . . . . . . . . . Times Spotted 245 | . 22 17 . . 8 5 10 . 3 4 20 2 10 10 5 1 2 15 35 28 15 7 3 23 Peak Tracking Total 13 | . 5 4 . . 4 5 5 . 4 4 13 1 2 5 2 1 2 8 12 10 9 6 2 11 Tactical Retreats 24 | . 2 3 . . 2 . 2 . . . 2 . 1 . . . . . . 6 2 . . 4 Traps | -11 -10 -10 -9 -9 -6 -6 -6 -6 -6 -6 -5 -5 -5 -5 -5 -4 -4 -4 -4 -3 -3 -2 -2 -1 ------- Run | Yrd Mat Sub Rec Scr Fac Was Fac Low Low Dat Pro Fac Ext Cet Arc Fac Was Fac Arm Res Tes Res Qua Acc Traps Triggered 10 | . . . . . 1 . 2 . . . . . 4 . . 1 . . 1 . . 1 . . Indirectly 1 | . . . . . . . . . . . . . . . . . . . 1 . . . . . Trap Hack Attempts 1 | . . . . . . . . . . . . . . . . 1 . . . . . . . . Triggered . | . . . . . . . . . . . . . . . . . . . . . . . . . Disarmed . | . . . . . . . . . . . . . . . . . . . . . . . . . Reprogrammed . | . . . . . . . . . . . . . . . . . . . . . . . . . Reused . | . . . . . . . . . . . . . . . . . . . . . . . . . Traps Extracted . | . . . . . . . . . . . . . . . . . . . . . . . . . Installed . | . . . . . . . . . . . . . . . . . . . . . . . . . Triggered . | . . . . . . . . . . . . . . . . . . . . . . . . . Machines | -11 -10 -10 -9 -9 -6 -6 -6 -6 -6 -6 -5 -5 -5 -5 -5 -4 -4 -4 -4 -3 -3 -2 -2 -1 ---------- Run | Yrd Mat Sub Rec Scr Fac Was Fac Low Low Dat Pro Fac Ext Cet Arc Fac Was Fac Arm Res Tes Res Qua Acc Machines Disabled 36 | . . 4 . . 3 . . . . . . 1 3 . 3 1 . 4 10 4 2 . . 1 Max in Single Turn 1 | . . 1 . . 1 . . . . . . 1 1 . 1 1 . 1 1 1 1 . . 1 Garrison Access 3 | . . . . . 1 . 1 . . . . . . . . . . . . 1 . . . . Energy Cycler 1 | . . . . . . . . . . . . . . . . . . . . . . . . 1 Machines Repaired . | . . . . . . . . . . . . . . . . . . . . . . . . . Machines Dismantled 1 | . . . . . . . . . . . . . 1 . . . . . . . . . . . Machines Sabotaged . | . . . . . . . . . . . . . . . . . . . . . . . . . Overloaded Fab Kills . | . . . . . . . . . . . . . . . . . . . . . . . . . Hacking | -11 -10 -10 -9 -9 -6 -6 -6 -6 -6 -6 -5 -5 -5 -5 -5 -4 -4 -4 -4 -3 -3 -2 -2 -1 --------- Run | Yrd Mat Sub Rec Scr Fac Was Fac Low Low Dat Pro Fac Ext Cet Arc Fac Was Fac Arm Res Tes Res Qua Acc Machines Accessed 102 | . 9 4 7 3 18 . 17 1 1 4 . 2 17 . . 7 . 1 5 3 . 1 . 2 Terminals 51 | . 7 . 4 . 5 . 8 . . . . . 17 . . 4 . 1 2 1 . 1 . 1 Fabricators 6 | . . . . . 3 . 1 . . . . . . . . . . . 2 . . . . . Repair Stations 3 | . . . . . . . 1 . . . . 1 . . . 1 . . . . . . . . Recycling Units 21 | . 2 . 3 . 7 . 4 . . . . 1 . . . 2 . . 1 1 . . . . Scanalyzers 4 | . . . . . 2 . 2 . . . . . . . . . . . . . . . . . Garrison Access 4 | . . . . . 1 . 1 . . . . . . . . . . . . 1 . . . 1 Total Hacks 261 | . 31 8 15 12 37 . 36 1 1 25 . 4 33 . . 23 . 4 23 4 . 2 . 2 Successful 174 | . 19 8 7 12 17 . 24 1 1 25 . 3 14 . . 19 . 1 19 3 . 1 . . Failed 85 | . 11 . 7 . 20 . 12 . . . . 1 19 . . 4 . 3 4 1 . 1 . 2 Catastrophic 15 | . . . 2 . 5 . 2 . . . . . 3 . . . . . . 1 . . . 2 Database Lockouts 2 | . 1 . 1 . . . . . . . . . . . . . . . . . . . . . Manual 92 | . 22 . 12 . 14 . 14 . . . . 1 8 1 . 11 . 4 4 1 . . . . Terminals 141 | . 27 . 12 . 11 . 19 . . . . . 33 . . 20 . 4 10 2 . 2 . 1 Fabricators 22 | . . . . . 9 . 1 . . . . . . . . . . . 12 . . . . . Repair Stations 6 | . . . . . . . 2 . . . . 3 . . . 1 . . . . . . . . Recycling Units 29 | . 4 . 3 . 10 . 7 . . . . 1 . . . 2 . . 1 1 . . . . Scanalyzers 9 | . . . . . 3 . 6 . . . . . . . . . . . . . . . . . Garrison Access 7 | . . . . . 4 . 1 . . . . . . . . . . . . 1 . . . 1 Terminal Hacks 104 | . 6 8 2 12 2 . 11 1 1 25 . . 11 . . 15 . 1 7 1 . 1 . . Record 21 | . . 5 . 5 . . . . . 11 . . . . . . . . . . . . . . Part Schematic 10 | . . . . . . . . . . 8 . . . . . 2 . . . . . . . . Robot Schematic 5 | . . . . . . . . . . 3 . . . . . 1 . 1 . . . . . . Robot Analysis 8 | . 1 . 1 6 . . . . . . . . . . . . . . . . . . . . Prototype ID Bank 12 | . 2 . 1 . 1 . 1 . . 3 . . . . . 4 . . . . . . . . Open Door 14 | . . 1 . . . . . 1 1 . . . 10 . . . . . 1 . . . . . Branch Access Points 5 | . . . . . 1 . 1 . . . . . . . . 1 . . . 1 . 1 . . Emergency Access Points 2 | . . . . . . . . . . . . . . . . 1 . . 1 . . . . . Terminal Index 1 | . . . . . . . 1 . . . . . . . . . . . . . . . . . Fabricator Index 1 | . . . . . . . 1 . . . . . . . . . . . . . . . . . Unreport Threat 3 | . . . . . . . 1 . . . . . . . . . . . 2 . . . . . Locate Traps 4 | . 2 . . . . . 1 . . . . . . . . . . . 1 . . . . . Transport Status 1 | . . . . . . . 1 . . . . . . . . . . . . . . . . . Recall Investigation 1 | . . . . . . . . . . . . . . . . 1 . . . . . . . . Recall Reinforcements 1 | . . . . . . . . . . . . . . . . 1 . . . . . . . . Hauler Manifests 4 | . 1 . . . . . 1 . . . . . 1 . . 1 . . . . . . . . Registered Components 3 | . . . . . . . 1 . . . . . . . . 1 . . 1 . . . . . Registered Prototypes 2 | . . . . . . . . . . . . . . . . 1 . . 1 . . . . . Zone Layout 3 | . . . . . . . 2 . . . . . . . . 1 . . . . . . . . Proto ID Catalog 2 | . . 1 . 1 . . . . . . . . . . . . . . . . . . . . Release Object 1 | . . 1 . . . . . . . . . . . . . . . . . . . . . . Fabricator Hacks 15 | . . . . . 4 . 1 . . . . . . . . . . . 10 . . . . . Network Status 2 | . . . . . 1 . 1 . . . . . . . . . . . . . . . . . Load Schematic 6 | . . . . . 1 . . . . . . . . . . . . . 5 . . . . . Build 7 | . . . . . 2 . . . . . . . . . . . . . 5 . . . . . Repair Station Hacks 3 | . . . . . . . 1 . . . . 2 . . . . . . . . . . . . Scan Component 2 | . . . . . . . 1 . . . . 1 . . . . . . . . . . . . Repair 1 | . . . . . . . . . . . . 1 . . . . . . . . . . . . Recycling Unit Hacks 3 | . 1 . . . 1 . 1 . . . . . . . . . . . . . . . . . Retrieve Components 3 | . 1 . . . 1 . 1 . . . . . . . . . . . . . . . . . Scanalyzer 5 | . . . . . 2 . 3 . . . . . . . . . . . . . . . . . Insert Component 2 | . . . . . . . 2 . . . . . . . . . . . . . . . . . Analyze 1 | . . . . . . . 1 . . . . . . . . . . . . . . . . . Retrieve Study 2 | . . . . . 2 . . . . . . . . . . . . . . . . . . . Garrison Access Hacks 3 | . . . . . 1 . 1 . . . . . . . . . . . . 1 . . . . Seal Access 3 | . . . . . 1 . 1 . . . . . . . . . . . . 1 . . . . Unauthorized Hacks 41 | . 12 . 5 . 7 . 6 . . . . 1 3 . . 4 . . 2 1 . . . . Terminals 18 | . 9 . 2 . 1 . 2 . . . . . 3 . . 1 . . . . . . . . Assimilate 4 | . . . . . 1 . 1 . . . . . 1 . . 1 . . . . . . . . Botnet 6 | . 2 . 1 . . . 1 . . . . . 2 . . . . . . . . . . . Operators 1 | . 1 . . . . . . . . . . . . . . . . . . . . . . . Skim 7 | . 6 . 1 . . . . . . . . . . . . . . . . . . . . . Fabricators 1 | . . . . . . . . . . . . . . . . . . . 1 . . . . . Prioritize 1 | . . . . . . . . . . . . . . . . . . . 1 . . . . . Repair Stations 1 | . . . . . . . . . . . . . . . . 1 . . . . . . . . Patch 1 | . . . . . . . . . . . . . . . . 1 . . . . . . . . Recycling Units 21 | . 3 . 3 . 6 . 4 . . . . 1 . . . 2 . . 1 1 . . . . Recyclers 1 | . . . . . . . 1 . . . . . . . . . . . . . . . . . Mask 1 | . 1 . . . . . . . . . . . . . . . . . . . . . . . Tunnel 5 | . 2 . 3 . . . . . . . . . . . . . . . . . . . . . Fedlink 12 | . . . . . 6 . 3 . . . . 1 . . . 2 . . . . . . . . Scraphulk 2 | . . . . . . . . . . . . . . . . . . . 1 1 . . . . Scanalyzers . | . . . . . . . . . . . . . . . . . . . . . . . . . Garrison Access . | . . . . . . . . . . . . . . . . . . . . . . . . . Data Cores Recovered . | . . . . . . . . . . . . . . . . . . . . . . . . . Used . | . . . . . . . . . . . . . . . . . . . . . . . . . Hacking Detections 56 | . 7 . 4 . 9 . 15 . . . . 1 9 . . 3 . 1 3 1 . 1 . 2 Full Trace Events 6 | . 1 . 1 . 2 . . . . . . . . . . . . . 2 . . . . . Feedback Events . | . . . . . . . . . . . . . . . . . . . . . . . . . Feedback Blocked . | . . . . . . . . . . . . . . . . . . . . . . . . . Robot Schematics Acquired 5 | . . . . . . . . . . 3 . . . . . 1 . 1 . . . . . . Robots Built 4 | . . . . . . . . . . . . . . . . . . . 4 . . . . . Authchips 2 | . . . . . . . . . . . . . . . . . . . 2 . . . . . Time 444 | . . . . . . . . . . . . . . . . . . . 444 . . . . . Total Robot Build Rating 36 | . . . . . . . . . . . . . . . . . . . 36 . . . . . Part Schematics Acquired 22 | . . . . . 8 1 3 . . 8 . . . . . 2 . . . . . . . . Parts Built 4 | . . . . . 3 . . . . . . . . . . . . . 1 . . . . . Authchips 1 | . . . . . . . . . . . . . . . . . . . 1 . . . . . Time 156 | . . . . . 131 . . . . . . . . . . . . . 25 . . . . . Total Part Build Rating 15 | . . . . . 14 . . . . . . . . . . . . . 1 . . . . . Part Studies Acquired 2 | . . . . . 2 . . . . . . . . . . . . . . . . . . . Parts Repaired 1 | . . . . . . . . . . . . 1 . . . . . . . . . . . . Time 56 | . . . . . . . . . . . . 56 . . . . . . . . . . . . Parts Recycled . | . . . . . . . . . . . . . . . . . . . . . . . . . Recycled Matter . | . . . . . . . . . . . . . . . . . . . . . . . . . Retrieved Matter . | . . . . . . . . . . . . . . . . . . . . . . . . . Retrieved Components 16 | . 9 . . . 1 . 6 . . . . . . . . . . . . . . . . . Parts Scanalyzed 1 | . . . . . . . 1 . . . . . . . . . . . . . . . . . Part Schematics Acquired 1 | . . . . . . . 1 . . . . . . . . . . . . . . . . . Parts Damaged . | . . . . . . . . . . . . . . . . . . . . . . . . . Bothacking | -11 -10 -10 -9 -9 -6 -6 -6 -6 -6 -6 -5 -5 -5 -5 -5 -4 -4 -4 -4 -3 -3 -2 -2 -1 ------------ Run | Yrd Mat Sub Rec Scr Fac Was Fac Low Low Dat Pro Fac Ext Cet Arc Fac Was Fac Arm Res Tes Res Qua Acc Used RIF Installer . | . . . . . . . . . . . . . . . . . . . . . . . . . Robots Hacked 7 | . . . . . . . . . . . . . . . 7 . . . . . . . . . Non-combat . | . . . . . . . . . . . . . . . . . . . . . . . . . Combat . | . . . . . . . . . . . . . . . . . . . . . . . . . Robot Hacks Applied . | . . . . . . . . . . . . . . . . . . . . . . . . . Manual 7 | . . . . . . . . . . . . . . . 7 . . . . . . . . . Relay Couplers Released . | . . . . . . . . . . . . . . . . . . . . . . . . . Fabnet Peak Effective % . | . . . . . . . . . . . . . . . . . . . . . . . . . Robots Rewired 7 | . . . . . . . . . . . . . 3 . . . . . 4 . . . . . Allies Hacked 2 | . . . . . . . . . . . . . . . . . . . 2 . . . . . Hacks Repelled . | . . . . . . . . . . . . . . . . . . . . . . . . . Allies | -11 -10 -10 -9 -9 -6 -6 -6 -6 -6 -6 -5 -5 -5 -5 -5 -4 -4 -4 -4 -3 -3 -2 -2 -1 -------- Run | Yrd Mat Sub Rec Scr Fac Was Fac Low Low Dat Pro Fac Ext Cet Arc Fac Was Fac Arm Res Tes Res Qua Acc Total Allies 57 | . . . . . 1 . 1 . . . . . 19 . 7 1 18 . 9 1 . . . . Largest Group 19 | . . . . . 1 . 1 . . . . . 9 9 7 1 19 13 7 1 . . . . Highest-Rated Group 683 | . . . . . 26 . 26 . . . . . 277 277 310 45 683 512 401 139 . . . . Highest-Rated Ally 139 | . . . . . 26 . 26 . . . . . 39 39 45 45 50 50 123 139 . . . . Total Orders . | . . . . . . . . . . . . . . . . . . . . . . . . . Ally Attacks 327 | . . . . . . . . . . . . . 34 46 . . 90 45 97 15 . . . . Total Damage 12717 | . . . . . . . . . . . . . 605 828 . . 5119 1517 4149 499 . . . . Kills 65 | . . . . . . . . . . . . . 3 5 . . 12 13 27 5 . . . . Allies Corrupted 1 | . . . . . . . . . . . . . . . . . . 1 . . . . . . Allies Melted . | . . . . . . . . . . . . . . . . . . . . . . . . . Intel | -11 -10 -10 -9 -9 -6 -6 -6 -6 -6 -6 -5 -5 -5 -5 -5 -4 -4 -4 -4 -3 -3 -2 -2 -1 ------- Run | Yrd Mat Sub Rec Scr Fac Was Fac Low Low Dat Pro Fac Ext Cet Arc Fac Was Fac Arm Res Tes Res Qua Acc Active Infowar (turns) 11260 | 17 702 4622 . . 879 78 862 210 657 64 142 132 651 45 . 83 411 373 1267 65 . . . . Optics 3018 | . . . . . 586 78 862 210 657 64 142 132 287 . . . . . . . . . . . Sensors 5602 | . . . . . 822 78 862 210 657 57 . 21 651 45 . 83 411 373 1267 65 . . . . Seismic 5901 | 17 702 4622 . . 560 . . . . . . . . . . . . . . . . . . . Robot Analysis Total 154 | . 1 . 1 6 . . . . . 146 . . . . . . . . . . . . . . Derelict Logs Recovered 3 | . . 1 . . . . . 1 1 . . . . . . . . . . . . . . . Drone Launches . | . . . . . . . . . . . . . . . . . . . . . . . . . Drone Recoveries . | . . . . . . . . . . . . . . . . . . . . . . . . . Exploration | -11 -10 -10 -9 -9 -6 -6 -6 -6 -6 -6 -5 -5 -5 -5 -5 -4 -4 -4 -4 -3 -3 -2 -2 -1 ------------- Run | Yrd Mat Sub Rec Scr Fac Was Fac Low Low Dat Pro Fac Ext Cet Arc Fac Was Fac Arm Res Tes Res Qua Acc Turns Passed 22116 | 158 1407 5646 1564 4568 881 78 862 210 657 64 142 132 670 611 1400 107 411 373 1446 394 93 41 30 171 Spaces Moved 15724 | 90 580 2228 641 1896 1851 178 2004 563 1011 100 444 211 1096 203 405 271 320 206 394 490 127 73 60 282 Core 497 | 14 . . . . . . . . . . . . . . . . . . . 106 9 73 60 235 Treads 6172 | 76 580 2228 641 1896 . . . . . . . . . . 154 . 118 4 394 81 . . . . Legs 531 | . . . . . . . . . . . . . . 71 151 . 107 202 . . . . . . Wheels 204 | . . . . . 204 . . . . . . . . . . . . . . . . . . . Hover . | . . . . . . . . . . . . . . . . . . . . . . . . . Flight 8320 | . . . . . 1647 178 2004 563 1011 100 444 211 1096 132 100 271 95 . . 303 118 . . 47 Fastest Speed 23 | 50 160 240 240 240 29 29 29 29 29 29 29 23 23 43 32 32 32 140 160 34 31 50 50 40 Average Speed 118 | 142 204 240 240 240 38 29 29 29 29 29 29 23 23 242 297 32 115 140 168 63 35 50 50 48 Slowest Speed 540 | 160 240 240 240 240 115 29 94 94 29 29 29 29 94 400 540 32 160 160 180 180 50 50 50 50 Overloaded Moves . | . . . . . . . . . . . . . . . . . . . . . . . . . Propulsion Burnouts . | . . . . . . . . . . . . . . . . . . . . . . . . . Robots Hopped 40 | . . . . . 6 . 7 . 1 2 5 1 2 . . . . . . 12 4 . . . Potential Cave-ins 5 | . . . . . . . . . . . . . 5 . . . . . . . . . . . Cave-ins Triggered 1 | . . . . . . . . . . . . . 1 . . . . . . . . . . . Exploration Rate (%) 51 | 8 84 88 92 91 46 95 51 68 96 82 47 7 62 60 75 7 95 11 31 23 26 5 15 14 Regions Visited 24 Branch Regions 13 Pre-discovered Areas 35 | . 2 . 3 . 1 . . . . 29 . . . . . . . . . . . . . . Known Exits Taken 13 | . . . . . . . 1 1 1 1 1 1 1 . 1 . . 1 1 1 1 1 . . Unknown Exits Taken 7 | 1 1 1 1 1 . . . . . . . . . 1 . . . . . . . . 1 . Scrap Searched 16 | . . 3 . 6 . . . 2 4 . 1 . . . . . . . . . . . . . Spaces Dug 126 | . . . . . 22 . 39 12 9 . 12 6 2 . . 2 . 9 7 5 . 1 . . Terrain Destroyed 238 | . . . . . 28 . 41 12 9 . 41 6 9 4 22 2 . 16 24 5 . 1 . 18 Melee 84 | . . . . . 19 . 39 11 8 . . 5 2 . . . . . . . . . . . Projectile 95 | . . . . . 9 . 2 1 1 . . 1 7 4 22 2 . 16 24 5 . 1 . . AOE 58 | . . . . . . . . . . . 41 . . . . . . . . . . . . 17 Terrain Rammed . | . . . . . . . . . . . . . . . . . . . . . . . . . Walls Destroyed . | . . . . . . . . . . . . . . . . . . . . . . . . . Machines Disabled . | . . . . . . . . . . . . . . . . . . . . . . . . . Actions | -11 -10 -10 -9 -9 -6 -6 -6 -6 -6 -6 -5 -5 -5 -5 -5 -4 -4 -4 -4 -3 -3 -2 -2 -1 --------- Run | Yrd Mat Sub Rec Scr Fac Was Fac Low Low Dat Pro Fac Ext Cet Arc Fac Was Fac Arm Res Tes Res Qua Acc Total 18339 | 106 696 2368 657 1917 1968 203 2190 589 1359 124 446 280 1466 281 524 291 360 266 1096 550 157 76 59 310 Wait 1588 | . 32 15 . . 20 25 114 10 338 22 . 56 217 22 . . 34 36 582 44 11 . . 10 Move 15626 | 89 579 2227 640 1895 1839 177 1989 562 1008 96 434 208 1090 202 404 271 319 205 393 467 119 72 59 282 Hop 35 | . . . . . 6 . 7 . 1 1 4 1 2 . . . . . . 10 3 . . . Pick Up 103 | 5 13 5 5 14 6 . 6 . . . . 1 5 12 13 2 2 1 13 . . . . . Fast Attach 83 | 7 . 1 . 1 9 1 7 . . . . 2 9 9 10 1 2 2 10 7 4 . . 1 Attach 72 | . . 5 . . 14 . 5 2 1 . 2 2 5 3 7 6 1 . 10 3 . 1 . 5 Detach 53 | . . . . . 8 . 5 2 1 . 1 2 4 3 10 5 . 1 4 1 3 1 . 2 Swap 60 | . 8 31 3 1 2 . 1 1 . . . . 3 . 3 . 2 1 4 . . . . . Drop 88 | . 5 11 2 6 24 . 8 . . . . . 6 2 11 2 . 2 . 6 3 . . . Fire 365 | 5 45 73 1 . 9 . 2 1 1 . 3 2 27 28 59 3 . 18 58 8 14 1 . 7 Melee 122 | . . . . . 31 . 46 11 9 5 2 6 5 . 7 . . . . . . . . . Ram 4 | . . . . . . . . . . . . . . . . . . . . . . 1 . 3 Kick . | . . . . . . . . . . . . . . . . . . . . . . . . . Crush 26 | . 14 . 6 . . . . . . . . . . . . . . . 2 4 . . . . Escape Stasis 61 | . . . . . . . . . . . . . 61 . . . . . . . . . . . Rewire 44 | . . . . . . . . . . . . . 24 . . . . . 20 . . . . . Trap 1 | . . . . . . . . . . . . . . . . 1 . . . . . . . . Miscellaneous 8 | . . . . . . . . . . . . . 8 . . . . . . . . . . . Route ------- -11/Scrapyard -10/Materials (discovered 5 exits: [*Mat x3] / [*Min] / *Sub) -10/Subcaves (discovered 3 exits: [*Mat x2] / *Rec) -9/Recycling (discovered 2 exits: Fac / *Scr) -9/Scraptown (discovered 2 exits: *Fac x2) -6/Factory (discovered 5 exits: *Fac x3 / Low x2) -6/Waste -6/Factory (discovered 3 exits: Fac / *Low x2) -6/Lower Caves -6/Lower Caves (discovered 2 exits: *Fac / *Dat) -6/Data Miner -5/Proximity Caves -5/Factory -5/Extension (discovered 2 exits: *Fac / *Cet) -5/Cetus (discovered 2 exits: *Fac / [*Arc]) -5/Archives (discovered 3 exits: *Fac / [*Hub x2]) -4/Factory (discovered 3 exits: Upp x2 / Arm) -4/Waste -4/Factory (discovered 2 exits: *Upp / *Arm) -4/Armory -3/Research (discovered 2 exits: *Tes x2) -3/Testing -2/Research (discovered 2 exits: *Qua x2) -2/Quarantine -1/Access History --------- Turn | Location | Event 6 | -11/Scrapyard | Discovered new exit (range 15) 159 | -11/Scrapyard | Entered Materials 228 | -10/Materials | Central database locked down 302 | -10/Materials | Discovered new exit (range 4) 311 | -10/Materials | Build established: Mutant 471 | -10/Materials | Discovered new exit (range 12) 545 | -10/Materials | Discovered new exit (range 3) 704 | -10/Materials | Discovered new exit (range 13) 904 | -10/Materials | Learned Storage terminal intel 986 | -10/Materials | Learned location of 1 exit from Recycling 1056 | -10/Materials | Learned 4 Recycling zone layouts 1114 | -10/Materials | Learned 2 Mines zone layouts 1290 | -10/Materials | Learned Storage trap positions 1503 | -10/Materials | Discovered new exit (range 5) 1566 | -10/Materials | Entered Subcaves 1724 | -10/Subcaves | Visited Clippyterm 1731 | -10/Subcaves | Learned Factory fabricator intel 2351 | -10/Subcaves | Shifting Twisted Machinery released Battle Rifle 2628 | -10/Subcaves | A swath of the cavern ceiling suddenly collapsed 3507 | -10/Subcaves | Shifting Twisted Machinery released Sub. Monowheel 3519 | -10/Subcaves | Discovered new exit (range 7) 3961 | -10/Subcaves | A swath of the cavern ceiling suddenly collapsed 4027 | -10/Subcaves | Discovered new exit (range 8) 4737 | -10/Subcaves | Core integrity fell below 50% 5288 | -10/Subcaves | Learned Materials security intel 5330 | -10/Subcaves | Visited 4L-MR0's lab 5394 | -10/Subcaves | Found Gun Armor 6173 | -10/Subcaves | Build established: Scavenger-Mutant 6558 | -10/Subcaves | Discovered new exit (range 11) 6871 | -10/Subcaves | Found SUBCON Basin 7148 | -10/Subcaves | Build established: Mutant 7212 | -10/Subcaves | Entered Recycling 7213 | -9/Recycling | Identified exit to Factory 8108 | -9/Recycling | Scanned before Scraplab entrance 8142 | -9/Recycling | Entered Scraplab 8187 | -9/Recycling | Discovered new exit (range 3) 8776 | -9/Recycling | Entered Scraptown 9319 | -9/Scraptown | Discovered new exit (range 11) 9393 | -9/Scraptown | Visited Bundlers 9535 | -9/Scraptown | Visited Spacefarers 9660 | -9/Scraptown | Visited Red Mages 9736 | -9/Scraptown | Visited The Evicted 9796 | -9/Scraptown | Visited Comm Corps 9830 | -9/Scraptown | Visited Cyclists 9878 | -9/Scraptown | Visited UFD Registry 9916 | -9/Scraptown | Visited Assassins FH 10276 | -9/Scraptown | Registered with UFD as "Slugblaster" 10348 | -9/Scraptown | Visited Analyses Database 10406 | -9/Scraptown | Visited Scrap Suit Storage 10449 | -9/Scraptown | Visited Junk Repository 10514 | -9/Scraptown | Visited Abandonware Association 10540 | -9/Scraptown | Learned abandonware demo "HACKBUD.EXE" 10540 | -9/Scraptown | Learned abandonware demo "REVENGE.EXE" 10595 | -9/Scraptown | Visited Observation Area 10636 | -9/Scraptown | Visited Infowarlord's Domain 10684 | -9/Scraptown | Visited A0-MCA Data Center 10727 | -9/Scraptown | Visited Science Guys 10806 | -9/Scraptown | Visited Curators Association 10876 | -9/Scraptown | Visited LU-1G1's Boring Crew 11056 | -9/Scraptown | Given a B rating by A0-MCA 11063 | -9/Scraptown | Found A0-MCA's Component Scanner 11556 | -9/Scraptown | Entered Cyclist Reading Room 11823 | -9/Scraptown | Found Spectral Analyzer 12006 | -9/Scraptown | Discovered new exit (range 5) 13092 | -9/Scraptown | Found Scrap Suit 13217 | -9/Scraptown | Met Optimus 13217 | -9/Scraptown | Accepted into 0bPrime 13344 | -9/Scraptown | Entered Factory 13344 | -6/Factory | Evolved 8 slots: Power x1, Propulsion x2, Utility x5 13345 | -6/Factory | Loaded intel: 6 fabricator locations 13507 | -6/Factory | Discovered new exit (range 14) 13521 | -6/Factory | Identified exit to Factory 13696 | -6/Factory | Tech Extrapolator generated special schematic: Deep Structural Scanner 13724 | -6/Factory | Loaded intel: 8 recycling unit locations 13780 | -6/Factory | Fabricated Deep Structural Scanner? 13785 | -6/Factory | Learned location of Protoforge (-2) 13814 | -6/Factory | Fabricated Hvy. Plasma Cannon? 13991 | -6/Factory | Discovered exit to Factory (range 5) 14121 | -6/Factory | Discovered exit to Factory (range 6) 14166 | -6/Factory | Identified exit to Lower Caves 14202 | -6/Factory | Build established: Hacker-Scout 14225 | -6/Factory | Manually triggered Chute Trap 14225 | -6/Factory | Sucked down chute 14225 | -6/Factory | Entered Waste 14226 | -6/Waste | Spotted C-40 Crusher 14228 | -6/Waste | Spotted C-40 Crusher 14230 | -6/Waste | Spotted C-40 Crusher 14231 | -6/Waste | Spotted C-40 Crusher 14240 | -6/Waste | EMP discharged 14255 | -6/Waste | Tech Extrapolator generated special schematic: Machine Rigger 14258 | -6/Waste | Spotted C-40 Crusher 14279 | -6/Waste | Spotted C-40 Crusher 14300 | -6/Waste | Discovered new exit (range 13) 14303 | -6/Waste | Identified exit to Factory 14303 | -6/Waste | Entered Factory 14800 | -6/Factory | Loaded intel: 8 recycling unit locations 14954 | -6/Factory | Discovered exit to Factory (range 12) 14966 | -6/Factory | Spotted B-75 Beast 15165 | -6/Factory | Entered Lower Caves 15233 | -6/Lower Caves | Encountered a Warlord checkpoint 15291 | -6/Lower Caves | Learned Factory trap positions 15319 | -6/Lower Caves | Discovered new exit (range 4) 15320 | -6/Lower Caves | Identified exit to Lower Caves 15375 | -6/Lower Caves | Entered another Lower Caves area 15412 | -6/Lower Caves | Discovered exit to Factory (range 17) 15425 | -6/Lower Caves | Learned Factory trap positions 15667 | -6/Lower Caves | Discovered new exit (range 12) 16032 | -6/Lower Caves | Identified exit to Data Miner 16032 | -6/Lower Caves | Entered Data Miner 16032 | -6/Data Miner | Discovered new exit (range 6) 16036 | -6/Data Miner | Met Data Miner 16043 | -6/Data Miner | Learned location of Section 7 (-2) 16043 | -6/Data Miner | Acquired the access code to Warlord's prototype stash 16048 | -6/Data Miner | Received God Mode back door access code from Data Miner 16055 | -6/Data Miner | Interfaced with the Data Conduit 16095 | -6/Data Miner | Identified exit to Proximity Caves 16096 | -6/Data Miner | Entered Proximity Caves 16234 | -5/Proximity Caves | Discovered exit to Factory (range 16) 16238 | -5/Proximity Caves | Entered Factory 16238 | -5/Factory | Evolved 2 slots: Propulsion x1, Utility x1 16239 | -5/Factory | Loaded intel: 79 trap records 16240 | -5/Factory | Loaded intel: 298 machine locations 16299 | -5/Factory | Repaired Broken Exp. Cesium-ion Thruster 16338 | -5/Factory | Discovered new exit (range 10) 16359 | -5/Factory | Loaded intel: 8 recycling unit locations 16370 | -5/Factory | Identified exit to Extension 16370 | -5/Factory | Entered Extension 16371 | -5/Extension | Loaded intel: 41 machine locations 16384 | -5/Extension | Rescued a captive Derelict 16386 | -5/Extension | Rescued a captive Derelict 16480 | -5/Extension | Rescued a captive Derelict 16484 | -5/Extension | Rescued a captive Derelict 16591 | -5/Extension | Rescued a captive Derelict 16594 | -5/Extension | Rescued a captive Derelict 16595 | -5/Extension | Rescued a captive Derelict 16599 | -5/Extension | Spotted B-75 Beast 16657 | -5/Extension | Crushed by falling debris 16658 | -5/Extension | System corruption reached 10% 16664 | -5/Extension | Rescued a captive Derelict 16672 | -5/Extension | Rescued a captive Derelict 16688 | -5/Extension | Lost 3 parts (3u) 16707 | -5/Extension | Rescued a captive Derelict 16915 | -5/Extension | Rescued a captive Derelict 16974 | -5/Extension | Rescued a captive Derelict 16974 | -5/Extension | Rescued a captive Derelict 16978 | -5/Extension | Rescued a captive Derelict 16983 | -5/Extension | Rescued a captive Derelict 16986 | -5/Extension | Discovered new exit (range 10) 16986 | -5/Extension | Discovered new exit (range 6) 16992 | -5/Extension | Identified exit to Factory 17009 | -5/Extension | Identified exit to Cetus 17040 | -5/Extension | Entered Cetus 17040 | -5/Cetus | Accompanied by 9 allies 17041 | -5/Cetus | Loaded intel: 24 machine locations 17047 | -5/Cetus | Spotted Cetus Guard 17047 | -5/Cetus | Spotted Cetus Guard 17065 | -5/Cetus | Spotted Cetus Guard 17065 | -5/Cetus | Spotted Cetus Guard 17081 | -5/Cetus | Allies destroyed Cetus Guard 17097 | -5/Cetus | Allies destroyed Cetus Guard 17102 | -5/Cetus | Allies destroyed Cetus Guard 17104 | -5/Cetus | Destroyed Cetus Guard 17114 | -5/Cetus | Lost 7 allies 17124 | -5/Cetus | Lost 3 parts (2n1u) 17308 | -5/Cetus | Discovered new exit (range 15) 17355 | -5/Cetus | Spotted Cetus Guard 17355 | -5/Cetus | Spotted Cetus Guard 17365 | -5/Cetus | Destroyed Cetus Guard 17366 | -5/Cetus | Spotted Cetus Guard 17375 | -5/Cetus | Destroyed Cetus Guard 17376 | -5/Cetus | Spotted Cetus Guard 17381 | -5/Cetus | Destroyed Cetus Guard 17390 | -5/Cetus | Destroyed Cetus Guard 17410 | -5/Cetus | Discovered exit to Factory (range 15) 17420 | -5/Cetus | Met Revision 17 17430 | -5/Cetus | Build established: Scavenger-Mutant 17651 | -5/Cetus | Entered Archives 17652 | -5/Archives | Loaded intel: 8 machine locations 17802 | -5/Archives | Lost 4 parts (2n2w) 17865 | -5/Archives | Discovered exit to Factory (range 16) 18131 | -5/Archives | Discovered new exit (range 16) 18528 | -5/Archives | Discovered new exit (range 15) 18673 | -5/Archives | Murdered 5 allies 19051 | -5/Archives | Entered Factory 19051 | -4/Factory | Evolved 2 slots: Propulsion x1, Utility x1 19052 | -4/Factory | Loaded intel: 100 trap records 19053 | -4/Factory | Loaded intel: 284 machine locations 19057 | -4/Factory | Identified exit to Upper Caves 19057 | -4/Factory | Identified exit to Armory 19061 | -4/Factory | Found Exp. Signal Interpreter 19115 | -4/Factory | Loaded intel: 8 recycling unit locations 19158 | -4/Factory | Sucked down chute 19158 | -4/Factory | Entered Waste 19163 | -4/Waste | 1 allies followed down the chute 19176 | -4/Waste | Warlord forces began an assault 19208 | -4/Waste | Spotted C-40 Crusher 19214 | -4/Waste | Allies destroyed C-40 Crusher 19216 | -4/Waste | Spotted C-40 Crusher 19218 | -4/Waste | Spotted C-40 Crusher 19218 | -4/Waste | Allies destroyed C-40 Crusher 19219 | -4/Waste | Spotted C-40 Crusher 19221 | -4/Waste | Allies destroyed C-40 Crusher 19223 | -4/Waste | Spotted C-40 Crusher 19229 | -4/Waste | Allies destroyed C-40 Crusher 19233 | -4/Waste | Allies destroyed C-40 Crusher 19236 | -4/Waste | Spotted C-40 Crusher 19240 | -4/Waste | Allies destroyed C-40 Crusher 19264 | -4/Waste | Lost 6 allies 19417 | -4/Waste | Discovered new exit (range 16) 19495 | -4/Waste | Build established: Wizard-Mutant 19553 | -4/Waste | Identified exit to Factory 19569 | -4/Waste | Entered Factory 19569 | -4/Factory | Accompanied by 13 allies 19570 | -4/Factory | Loaded intel: 302 machine locations 19698 | -4/Factory | Discovered exit to Upper Caves (range 16) 19826 | -4/Factory | Lost 5 allies 19920 | -4/Factory | Lost 6 allies 19930 | -4/Factory | Discovered exit to Armory (range 7) 19942 | -4/Factory | Entered Armory 19943 | -4/Armory | Loaded intel: 102 machine locations 20034 | -4/Armory | Lost 3 parts (1p1n1w) 20302 | -4/Armory | Build established: Hacker-Mutant 20317 | -4/Armory | Fabricated D-83 Annihilator (x1) 20429 | -4/Armory | Fabricated D-83 Annihilator (x1) 20454 | -4/Armory | Fabricated Huge Storage Unit (x1) 20568 | -4/Armory | Fabricated D-83 Annihilator? 20757 | -4/Armory | Found Com. Tesla Bomb Launcher 20760 | -4/Armory | Found Com. Tesla Bomb Launcher 20763 | -4/Armory | Found Com. Tesla Bomb Launcher 20765 | -4/Armory | Found Com. Tesla Bomb Launcher 20768 | -4/Armory | Found Com. Tesla Bomb Launcher 20771 | -4/Armory | Found Com. Tesla Bomb Launcher 20774 | -4/Armory | Found Com. Tesla Bomb Launcher 20776 | -4/Armory | Found Com. Tesla Bomb Launcher 20947 | -4/Armory | Lost 6 allies 20992 | -4/Armory | Lost 3 parts (1p1u1w) 21009 | -4/Armory | Scraphulk reinforcements arrived? 21189 | -4/Armory | Fabricated D-83 Annihilator? 21362 | -4/Armory | Discovered new exit (range 15) 21383 | -4/Armory | Core integrity fell below 50% 21387 | -4/Armory | Identified exit to Research 21388 | -4/Armory | Entered Research 21388 | -3/Research | Evolved 2 slots: Utility x2 21389 | -3/Research | Loaded intel: 106 machine locations 21415 | -3/Research | Lost 3 parts (2n1u) 21588 | -3/Research | Revision forces began assault on 0b10 21623 | -3/Research | Lost 5 parts (1p2n1u1w) 21644 | -3/Research | Spotted B-86 Titan 21657 | -3/Research | Core integrity fell below 50% 21684 | -3/Research | Lost 5 parts (2n3u) 21699 | -3/Research | Identified exit to Testing 21732 | -3/Research | Scraphulk reinforcements arrived? 21782 | -3/Research | Entered Testing 21783 | -3/Testing | Loaded intel: 47 machine locations 21806 | -3/Testing | Found Prototype Ballistic Gun 21806 | -3/Testing | Identified Hyp. Multirail 21848 | -3/Testing | Discovered new exit (range 15) 21875 | -3/Testing | Identified exit to Research 21875 | -3/Testing | Entered Research 21875 | -2/Research | Evolved 2 slots: Propulsion x1, Utility x1 21876 | -2/Research | Loaded intel: 117 machine locations 21879 | -2/Research | Identified exit to Quarantine 21905 | -2/Research | Lost 6 parts (5n1u) 21916 | -2/Research | Entered Quarantine 21917 | -2/Quarantine | Loaded intel: 59 machine locations 21930 | -2/Quarantine | Build established: Mutant 21941 | -2/Quarantine | Discovered new exit (range 10) 21946 | -2/Quarantine | Entered Access 21946 | -1/Access | Evolved 2 slots: Utility x2 21947 | -1/Access | Loaded intel: 126 machine locations 22030 | -1/Access | Core integrity fell below 50% 22045 | -1/Access | Core integrity fell below 20% 22081 | -1/Access | Energy Cycler disabled 22098 | -1/Access | Lost 5 parts (1p1n1u2w) 22117 | -1/Access | Destroyed by P-80 Master with Gamma Rifle Last Messages --------------- 22044_ S-43 Plague misfires. 22045_ Wall collapses. 22046_ Slammed into S-43 Plague. 22046_ Broken Exp. Signal Interpreter destroyed. 22046_ System corrupted by crushing effect (+3). 22047_ Acquired Xenon Bombardment Thruster. 22048_ S-43 Plague IFF system glitched. 22048_ Acquired 36 matter. 22050_ S-43 Plague IFF system glitched. 22050_ U-05 Engineer lays Concrete. 22067_ Xenon Bombardment Thruster destroyed. 22068_ W-44 Eye sends out distress signal. 22081_ ALERT: Power surge detected, dispatching additional patrols. 22081_ Energy Cycler explodes. 22083_ K-01 Serf collects debris. 22083_ K-01 Serf destroyed. 22086_ K-01 Serf collects debris. 22086_ Anti-Orbital Battery disabled. 22086_ K-01 Serf collects debris. 22096_ WKNGNZUB&, SBLB>KJLDW|1/GAPJN3XQOG VXY Map ----- +----------------------------------------------------+ | ???????????????????"?????????????????????????????? | | ?????????????????????????????????????????????????? | | ?????????????????????????????????????????????????? | | ??????????????????? ?????????????????????????????? | | ??????????????????? ????????????????????????????? | | ?????????#??????###+##???????????????????????????? | | ???????? ####### #???????????????????????????? | | ????????? ^ = #???????????????????????????? | | ????????"? +???????????????????????????? | | ??????????# #???????????????????????????? | | ""????????# #?????????????????????????"?? | | """???????# #????????????????????????"""? | | """???????# #???????????????????????"""?? | | ""????????# !!! #????????????????????????"??? | | ??????????#^ !!! ]#???????????????????????????? | | ??????????# !! #???????????????????????????? | | ########### #####+##########????????????? | | ] ?????????? | | ?????????? | | #######+########## ###### ######????????????????? | | ?????? ????????#+#????# #?????????????????????? | | ?????? ???????? ????# #?????????????????????? | | ????? ""??????? ????# #?????????????????????? | | ????? ""?????? ???# #?????????????????????? | | ???? """"""???? "???# p#?????????????????????? | | ???? """"""???# """??#@ #??????????????""?????? | | ???! ""?????# """ ??# #??????????????""?????? | | ??? ""?????# " ?+ +????????????""""""???? | | ?? ???????# ?# #????????????""""""???? | | ?? ???????# ] ??# #??????????????""?????? | | ?####??????????#####????# #??????????????""?????? | | ????????????????????????# #?????????????????????? | | ?????????????????"??????# #?????????????????????? | | ????""""?????????"?????? #?????????????????????? | | ????""""?????????"?????? #?????????????????????? | | ????""""?""""""??"?????? #?????????????????????? | | ????""""?"????"??"?????? #?????????????????????? | | ????""""?"?"??"??"?????? #?????????????????????? | | ????""""?"?""?"??"?????? gA??????????????????????? | | ????""""?"????"??"?????? ??????????????????????? | | ????""""?""""""??"?????? ??????????????????????? | | ????""""?????????""""?"""????????????????????????? | | ????""""?????????""""T"""????????????????????????? | | ?????????????????"???????????????????????????????? | | ?????????????????????????????????????????????????? | | ?????????????????????????????????????????????????? | | ?????????????????????????????????????????????????? | | ?????????????????????????????????????????????????? | | ????????????????""???????????????????????????????? | | ????????????????""???????????????????????????????? | +----------------------------------------------------+ Best States ------------- Heat Dissipation 78 Energy Generation 39 Energy Capacity 420 Matter Stores 300 Matter Capacity 300 Sight Range 24 Robot Scan Range 18 Terrain Scan Density 10 Armor Coverage 450 Evasion (%) 65 Targeting Accuracy 20 Recoil Reduction 6 Offensive Hacking 58 Defensive Hacking 36 Authchip Count 3 Item Schematics ----------------- Deep Structural Scanner | -6/Factory | Extrapolated Mak. Medium Armor Plating | -6/Factory | Extrapolated Mak. Coolant Network | -6/Factory | Extrapolated Mak. Terrain Scanner | -6/Factory | Extrapolated 0b10 Decoder Chip [Skirmisher] | -6/Factory | Extrapolated Mak. Light Armor Plating | -6/Factory | Extrapolated Mak. Ablative Armor | -6/Factory | Extrapolated Mak. System Restoration Module | -6/Factory | Extrapolated Machine Rigger | -6/Waste | Extrapolated Beamcaster | -6/Factory | Extrapolated Mak. ECM Suite | -6/Factory | Extrapolated Exp. Cesium-ion Thruster | -6/Factory | Scanalyzed Combat Drone Bay | -6/Data Miner | Free Lgt. Regenerative Plating | -6/Data Miner | Free Cld. Gravmag System | -6/Data Miner | Free Imp. Energy Well | -6/Data Miner | Free Hvy. Gatling Laser | -6/Data Miner | Free Adv. Medium Treads | -6/Data Miner | Free Heavy Servo Lattice | -6/Data Miner | Free Dispersion Rifle | -6/Data Miner | Free Cld. Impulse Thruster | -4/Factory | Hacked Huge Storage Unit | -4/Factory | Hacked Robot Schematics ------------------ L-41 Fighter | -6/Data Miner | Free A-15 Conveyor | -6/Data Miner | Free R-10 Processor | -6/Data Miner | Free D-63 Destroyer | -4/Factory | Hacked D-83 Annihilator | -4/Factory | Hacked Fabricated ------------ Deep Structural Scanner | x1 | -6/Factory Hvy. Plasma Cannon | x2 | -6/Factory | Preloaded D-83 Annihilator | x1 | -4/Armory | Authchip D-83 Annihilator | x1 | -4/Armory | Authchip Huge Storage Unit | x1 | -4/Armory | Authchip D-83 Annihilator | x1 | -4/Armory D-83 Annihilator | x1 | -4/Armory Repaired ---------- Exp. Cesium-ion Thruster | 11% | -5/Factory | Broken Studied --------- Lgt. Fission Core | -6/Factory | Hacked Lgt. Angular Momentum Engine | -6/Factory | Hacked Alien Tech Used ----------------- None Achievements -------------- Fancy Inventory Inventory Pressure My Bad Official Business Scientist At Large Challenges ------------ None Game ------ Seed DimensionalRecoilRefractor Manual? 0 Play Time 02:53:01 Cumulative 618.9 hours Start 2025.12.21 @ 13:46:04 End 2025.12.22 @ 15:03:10 Sessions 3 Manual Loads 0 Difficulty Rogue Special Mode None Game No. 259 Rogue 259 Adventurer 0 Explorer 0 Win Type - Total 29 Types 9/4/9/2/1/0/1/1/1/1 Lore% 93 Gallery% 87 Achievement% 63 Wizard Run 0 Options --------- Layout 0 ASCII 0 Keyboard 0 Movement Arrows Keybinds 0 Fullscreen 2 Font 18/SmallcapsGlow Map View 76x50 Zoom Use 0% Tactical HUD 1 Map Filters NONE Filters NONE Steam 1 RUN: 8af0f23d-25fd-4392-9b79-1565d1f727ed